bitfinex-derivatives/quotes_BTCF0:USTF0_20230701
["timestamp","ask_amount","ask_price","bid_price","bid_amount"]
[1688221569747,0.44723824,30602.0,30601.0,0.07400351]
[1688221569947,0.44723824,30602.0,30601.0,0.019608]
[1688221570151,0.12046221,30602.0,30601.0,0.03783769]
[1688221570555,0.28809292,30602.0,30601.0,0.019608]
[1688221570955,0.83641464,30602.0,30601.0,0.019608]
[1688221571156,0.54832172,30602.0,30601.0,0.019608]
[1688221571560,0.22154569,30602.0,30601.0,0.03783769]
[1688221571944,0.38132789,30603.0,30602.0,0.01884945]
[1688221572155,0.68735389,30603.0,30602.0,0.019607]
[1688221572471,0.79374838,30603.0,30602.0,0.380407]
[1688221572759,1.28444015,30603.0,30602.0,0.380407]
[1688221572951,0.9576748,30603.0,30602.0,0.380407]
[1688221573158,1.0165008,30603.0,30602.0,0.380407]
[1688221573352,1.01956849,30603.0,30602.0,0.380407]
[1688221574156,0.96074249,30603.0,30602.0,0.380407]
[1688221574357,1.20794249,30603.0,30602.0,0.380407]
[1688221574545,1.20794249,30603.0,30602.0,0.689207]
[1688221576148,1.20794249,30603.0,30602.0,0.682684]
[1688221576354,1.22754949,30603.0,30602.0,0.682684]
[1688221580356,1.22754949,30603.0,30602.0,0.68874383]
[1688221581766,1.22754949,30603.0,30602.0,0.66913683]
[1688221582063,1.22754949,30603.0,30602.0,0.64914381]
[1688221584469,1.22754949,30603.0,30602.0,0.63660417]
[1688221587271,1.34530217,30603.0,30602.0,0.63660417]
[1688221587772,1.34530217,30603.0,30602.0,0.31485983]
[1688221588369,1.34530217,30603.0,30602.0,0.28912983]
[1688221589169,0.2452,30602.0,30600.0,0.34185983]
[1688221589369,0.266808,30601.0,30600.0,0.36146783]
[1688221589571,0.7539846,30601.0,30600.0,0.36146783]
[1688221590972,0.7539846,30601.0,30600.0,0.019608]
[1688221591167,0.7539846,30601.0,30600.0,0.380408]
[1688221591365,0.7539846,30601.0,30600.0,0.35391109]
[1688221591570,0.7539846,30601.0,30600.0,0.35844841]
[1688221591962,0.7539846,30601.0,30600.0,0.66834841]
[1688221592162,0.7539846,30601.0,30600.0,0.33404532]
[1688221592358,0.7539846,30601.0,30600.0,0.69484532]
[1688221593562,0.7539846,30601.0,30600.0,0.60527694]
[1688221593771,0.7539846,30601.0,30600.0,0.24447694]
[1688221594070,1.24313147,30601.0,30600.0,0.24447694]
[1688221594458,1.24313147,30601.0,30596.0,0.729531]
[1688221594459,2.0,30599.0,30596.0,0.729531]
[1688221594662,0.2471,30597.0,30596.0,0.419631]
[1688221595276,0.2471,30597.0,30596.0,0.41214618]
[1688221595477,0.2471,30597.0,30596.0,0.3608]
[1688221595662,0.2471,30597.0,30596.0,0.419631]
[1688221596669,0.2471,30597.0,30596.0,0.058831]
[1688221596875,0.2471,30597.0,30596.0,0.419631]
[1688221597261,0.266711,30597.0,30596.0,0.419631]
[1688221597469,0.75902156,30597.0,30596.0,0.419631]
[1688221597965,0.75902156,30597.0,30596.0,0.723631]
[1688221598669,0.75902156,30597.0,30596.0,0.69788599]
[1688221602579,0.73941056,30597.0,30596.0,0.69788599]
[1688221606679,0.80535443,30597.0,30596.0,0.69788599]
[1688221606870,0.80535443,30597.0,30596.0,0.723631]
[1688221608277,0.83175131,30597.0,30596.0,0.723631]
[1688221612570,0.83175131,30597.0,30596.0,0.701245]
[1688221615682,0.83175131,30597.0,30596.0,0.69413366]
[1688221616571,0.83175131,30597.0,30596.0,0.68457789]
[1688221622287,0.27349688,30597.0,30596.0,0.68457789]
[1688221622780,0.27349688,30597.0,30596.0,0.72165703]
[1688221622984,0.27349688,30597.0,30596.0,0.70388743]
[1688221624581,0.27349688,30597.0,30596.0,0.68503798]
[1688221624775,0.27349688,30597.0,30596.0,0.66680829]
[1688221634585,0.27349688,30597.0,30596.0,0.68503798]
[1688221634785,0.27349688,30597.0,30596.0,0.75828294]
[1688221635381,0.27349688,30597.0,30596.0,0.70388743]
[1688221636185,0.27349688,30597.0,30596.0,0.68565774]
[1688221636788,0.27349688,30597.0,30596.0,0.66680829]
[1688221637380,0.27349688,30597.0,30596.0,0.66665187]
[1688221640594,0.27349688,30597.0,30596.0,0.62082187]
[1688221641189,0.33774781,30597.0,30596.0,0.62082187]
[1688221642099,0.66655881,30597.0,30596.0,0.62082187]
[1688221642292,0.66655881,30597.0,30596.0,0.59484787]
[1688221642484,0.66655881,30597.0,30596.0,0.393377]
[1688221642793,1.15355169,30597.0,30596.0,0.393377]
[1688221645891,1.15355169,30597.0,30596.0,0.3608]
[1688221646097,1.15355169,30597.0,30596.0,0.414631]
[1688221646597,1.15355169,30597.0,30596.0,0.36846999]
[1688221646795,1.15355169,30597.0,30596.0,0.34653527]
[1688221648094,1.15355169,30597.0,30596.0,0.06337985]
[1688221648303,1.15355169,30597.0,30596.0,0.058831]
[1688221648599,1.15355169,30597.0,30596.0,0.032131]
[1688221649099,2.15355169,30597.0,30596.0,0.032131]
[1688221649695,2.25158975,30597.0,30596.0,0.032131]
[1688221649896,2.25158975,30597.0,30596.0,0.058831]
[1688221650402,2.25158975,30597.0,30596.0,0.06337746]
[1688221653896,2.25158975,30597.0,30596.0,0.42417746]
[1688221654091,2.25158975,30597.0,30596.0,0.06337746]
[1688221654301,2.25158975,30597.0,30596.0,0.419631]
[1688221654701,2.25158975,30597.0,30596.0,0.42417451]
[1688221656104,2.25158975,30597.0,30596.0,0.41047175]
[1688221660410,2.27120075,30597.0,30596.0,0.41047175]
[1688221664510,2.27120075,30597.0,30596.0,0.42417451]
[1688221667210,2.27120075,30597.0,30596.0,0.40414771]
[1688221669217,2.27120075,30597.0,30596.0,0.42417451]
[1688221670317,2.27120075,30597.0,30596.0,0.41873919]
[1688221670512,2.27120075,30597.0,30596.0,0.40851058]
[1688221670720,2.27120075,30597.0,30596.0,0.40737439]
[1688221671817,2.25158975,30597.0,30596.0,0.40737439]
[1688221672016,1.94238975,30597.0,30596.0,0.40737439]
[1688221674625,1.96200075,30597.0,30596.0,0.42163061]
[1688221674818,1.96200075,30597.0,30596.0,0.41823622]
[1688221675012,1.96200075,30597.0,30596.0,0.41115085]
[1688221676117,1.96200075,30597.0,30596.0,0.058831]
[1688221679828,1.94238975,30597.0,30596.0,0.058831]
[1688221680414,0.45539687,30597.0,30596.0,0.058831]
[1688221680920,0.45539687,30597.0,30596.0,0.07706069]
[1688221681316,0.33774781,30597.0,30596.0,0.09591014]
[1688221681721,0.33774781,30597.0,30596.0,0.10241014]
[1688221682222,0.33774781,30597.0,30596.0,0.46321014]
[1688221684433,0.33774781,30597.0,30596.0,0.44498045]
[1688221685039,0.33774781,30597.0,30596.0,0.46321014]
[1688221685823,0.33774781,30597.0,30596.0,0.45671014]
[1688221689625,0.33774781,30597.0,30596.0,0.45651986]
[1688221690624,0.33774781,30597.0,30596.0,0.43829017]
[1688221691634,0.33774781,30597.0,30596.0,0.45651986]
[1688221693335,0.33774781,30597.0,30596.0,0.43829017]
[1688221694045,0.33774781,30597.0,30596.0,0.45651986]
[1688221701735,0.27349688,30597.0,30596.0,0.7035154]
[1688221701938,0.02639688,30597.0,30596.0,0.7100154]
[1688221702443,0.24769025,30600.0,30596.0,0.7100154]
[1688221702643,0.24769025,30600.0,30599.0,0.6067]
[1688221702833,0.27324186,30600.0,30599.0,0.626309]
[1688221703234,0.76635053,30600.0,30599.0,0.66338814]
[1688221704434,0.76635053,30600.0,30599.0,0.66468814]
[1688221708259,0.76635053,30600.0,30599.0,0.64645845]
[1688221708458,0.76635053,30600.0,30599.0,0.66468814]
[1688221710267,0.76628393,30600.0,30599.0,0.66468814]
[1688221714365,0.76628393,30600.0,30599.0,0.41748814]
[1688221717959,0.76628393,30600.0,30599.0,0.66378814]
[1688221725171,0.76628393,30600.0,30599.0,0.66364598]
[1688221737286,0.76628393,30600.0,30599.0,0.66346531]
[1688221737888,0.76628393,30600.0,30599.0,1.02426531]
[1688221743796,0.76628393,30600.0,30599.0,0.30266531]
[1688221744087,0.76628393,30600.0,30599.0,1.02426531]
[1688221744479,0.76618393,30600.0,30599.0,1.02326531]
[1688221745488,0.76618393,30600.0,30599.0,0.66246531]
[1688221745690,0.76618393,30600.0,30599.0,1.02326531]
[1688221745892,0.76618393,30600.0,30599.0,0.30166531]
[1688221746086,0.76618393,30600.0,30599.0,1.02326531]
[1688221747991,0.51908393,30600.0,30599.0,1.02326531]
[1688221751796,0.51908393,30600.0,30599.0,1.00428767]
[1688221752397,0.51908393,30600.0,30599.0,1.02313712]
[1688221756498,0.51896476,30600.0,30599.0,1.02313712]
[1688221759806,0.51896476,30600.0,30599.0,0.30153712]
[1688221760010,0.51896476,30600.0,30599.0,1.02313712]
[1688221768799,0.51896476,30600.0,30599.0,1.02303113]
[1688221791122,0.51896476,30600.0,30599.0,0.98595199]
[1688221791324,0.76616476,30600.0,30599.0,0.98595199]
[1688221791529,0.76616476,30600.0,30599.0,0.98581338]
[1688221792828,0.76616476,30600.0,30599.0,0.62501338]
[1688221795734,0.76616476,30600.0,30599.0,0.62562238]
[1688221798335,0.83285929,30600.0,30599.0,0.62562238]
[1688221798831,0.76616476,30600.0,30599.0,0.62562238]
[1688221801626,0.83249941,30600.0,30599.0,0.62562238]
[1688221802331,0.76616476,30600.0,30599.0,0.62562238]
[1688221804328,0.76616476,30600.0,30599.0,0.626309]
[1688221806136,0.77875429,30600.0,30599.0,0.626309]
[1688221806833,0.7785342,30600.0,30599.0,0.626309]
[1688221810231,0.5313342,30600.0,30599.0,0.627609]
[1688221810535,0.01258953,30600.0,30599.0,0.90988814]
[1688221810737,0.89954888,30608.0,30599.0,1.21798814]
[1688221811049,0.3034,30606.0,30603.0,0.05]
[1688221811340,0.01648274,30607.0,30606.0,0.019605]
[1688221811534,0.02702851,30608.0,30606.0,0.265905]
[1688221811736,0.02702851,30608.0,30607.0,0.28427914]
[1688221811935,0.02702851,30608.0,30607.0,0.30388314]
[1688221812732,0.51389008,30608.0,30607.0,0.30388314]
[1688221812937,0.5345046,30608.0,30607.0,0.30388314]
[1688221815535,0.5345046,30608.0,30607.0,0.28565345]
[1688221815745,0.7817046,30608.0,30607.0,0.019604]
[1688221817245,0.8013076,30608.0,30606.0,0.04901]
[1688221817448,0.2472,30607.0,30606.0,0.04901]
[1688221817748,0.77549678,30607.0,30606.0,0.019605]
[1688221817939,1.58097352,30607.0,30606.0,0.019605]
[1688221818839,1.6986224,30607.0,30606.0,0.019605]
[1688221822243,1.76340987,30607.0,30606.0,0.019605]
[1688221823656,1.74380587,30607.0,30606.0,0.019605]
[1688221828060,1.25521505,30607.0,30606.0,0.019605]
[1688221828364,1.00801505,30607.0,30606.0,0.266205]
[1688221828554,1.00801505,30607.0,30606.0,0.28443469]
[1688221828756,0.89036617,30607.0,30606.0,0.30328414]
[1688221829447,0.8255787,30607.0,30606.0,0.30328414]
[1688221829948,0.8255787,30607.0,30606.0,0.28443469]
[1688221830151,0.8255787,30607.0,30606.0,0.28436809]
[1688221830356,0.8255787,30607.0,30606.0,0.2661384]
[1688221830555,0.8255787,30607.0,30606.0,0.28436809]
[1688221831258,0.8255787,30607.0,30606.0,0.2661384]
[1688221831461,0.5080787,30607.0,30606.0,0.2661384]
[1688221831857,0.5080787,30607.0,30606.0,0.30321754]
[1688221836759,0.5080787,30607.0,30606.0,0.2661384]
[1688221836959,0.5080787,30607.0,30606.0,0.28436809]
[1688221838874,0.5080787,30607.0,30606.0,0.30321754]
[1688221841059,0.49521194,30607.0,30606.0,0.30321754]
[1688221842173,0.50028037,30607.0,30606.0,0.30321754]
[1688221843265,0.50028037,30607.0,30606.0,0.30311309]
[1688221843655,0.01230363,30607.0,30606.0,0.30311309]
[1688221844175,0.02702851,30608.0,30606.0,0.30311309]
[1688221844470,0.02702851,30608.0,30607.0,0.28427914]
[1688221844672,0.02702851,30608.0,30607.0,0.30388314]
[1688221854769,0.04084834,30608.0,30607.0,0.30388314]
[1688221874891,0.04084834,30608.0,30607.0,1.02548314]
[1688221891512,0.04075221,30608.0,30607.0,1.02548314]
[1688221924236,0.04075221,30608.0,30607.0,1.04548314]
[1688221924831,0.04075221,30608.0,30607.0,1.07548314]
[1688221925724,0.04075221,30608.0,30607.0,1.05663369]
[1688221925931,0.04075221,30608.0,30607.0,1.038404]
[1688221927627,0.04075221,30608.0,30607.0,1.05663369]
[1688221927835,0.04075221,30608.0,30607.0,1.038404]
[1688221929340,0.04075221,30608.0,30607.0,1.05663369]
[1688221929531,0.04075221,30608.0,30607.0,1.038404]
[1688221930224,0.04075221,30608.0,30607.0,1.05663369]
[1688221930533,0.04075221,30608.0,30607.0,1.038404]
[1688221931226,0.04075221,30608.0,30607.0,1.05725345]
[1688221931428,0.04075221,30608.0,30607.0,1.07548314]
[1688221936143,0.04075221,30608.0,30607.0,1.05663369]
[1688221938340,0.04075221,30608.0,30607.0,1.07548314]
[1688221944866,0.04075221,30608.0,30607.0,1.05663369]
[1688221945051,0.04075221,30608.0,30607.0,1.038404]
[1688221945665,0.04075221,30608.0,30607.0,1.05663369]
[1688221947765,0.04075221,30608.0,30607.0,0.33503369]
[1688221947967,0.04075221,30608.0,30607.0,1.05663369]
[1688221949167,0.04075221,30608.0,30607.0,0.33503369]
[1688221949365,0.04075221,30608.0,30607.0,1.05663369]
[1688221953767,0.04075221,30608.0,30607.0,1.038404]
[1688221955062,0.04075221,30608.0,30607.0,1.07548314]
[1688221959872,0.04135892,30610.0,30608.0,0.03707914]
[1688221960169,0.04135892,30610.0,30609.0,0.266803]
[1688221960362,0.32826609,30613.0,30609.0,0.266803]
[1688221960559,0.32826609,30613.0,30612.0,0.3608]
[1688221960770,0.24878728,30613.0,30612.0,0.380401]
[1688221960971,0.74015179,30613.0,30612.0,0.380401]
[1688221961171,0.41349318,30613.0,30612.0,0.39925045]
[1688221961774,0.08683457,30613.0,30612.0,0.41748014]
[1688221962073,2.11442064,30616.0,30612.0,0.41748014]
[1688221962274,0.019599,30614.0,30613.0,0.03707914]
[1688221962467,0.266699,30614.0,30613.0,0.05667814]
[1688221962667,0.75870545,30614.0,30613.0,0.05667814]
[1688221962861,0.266699,30614.0,30613.0,0.05667814]
[1688221963066,0.75547224,30614.0,30613.0,0.05667814]
[1688221963369,0.75547224,30614.0,30613.0,0.03782869]
[1688221963577,0.75547224,30614.0,30613.0,0.019599]
[1688221963772,0.75547224,30614.0,30613.0,0.03782869]
[1688221964474,0.75547224,30614.0,30613.0,0.019599]
[1688221967771,0.76595099,30614.0,30613.0,0.019599]
[1688221968678,0.76595099,30614.0,30613.0,0.03782869]
[1688221968875,0.76595099,30614.0,30613.0,0.019599]
[1688221970066,0.76595099,30614.0,30613.0,0.380399]
[1688221975073,1.25465701,30614.0,30613.0,0.380399]
[1688221975274,1.23505801,30614.0,30613.0,0.380399]
[1688221975473,1.37238249,30614.0,30613.0,0.37393675]
[1688221975784,1.37238249,30614.0,30613.0,0.019599]
[1688221975978,2.37238249,30614.0,30613.0,0.019599]
[1688221977087,2.37238249,30614.0,30611.0,0.049002]
[1688221977294,0.2472,30612.0,30611.0,0.019601]
[1688221977485,0.2472,30612.0,30609.0,0.065832]
[1688221977486,0.266801,30612.0,30609.0,0.040302]
[1688221977785,1.01120603,30612.0,30611.0,0.019601]
[1688221977985,1.25840603,30612.0,30611.0,0.019601]
[1688221978182,1.25840603,30612.0,30609.0,0.040302]
[1688221978379,0.264902,30610.0,30609.0,0.00049]
[1688221978774,0.63292282,30610.0,30609.0,0.00049]
[1688221979284,0.63292282,30610.0,30609.0,0.020093]
[1688221979981,0.27212282,30610.0,30609.0,0.020093]
[1688221980183,0.27212282,30610.0,30608.0,0.052424]
[1688221980388,0.2471,30609.0,30608.0,0.052424]
[1688221980582,0.3087178,30609.0,30608.0,0.052424]
[1688221981281,0.25432229,30609.0,30608.0,0.052424]
[1688221981978,0.383905,30612.0,30608.0,0.10519728]
[1688221982288,0.37840494,30612.0,30608.0,0.052424]
[1688221982482,0.2453,30609.0,30608.0,0.052424]
[1688221982785,0.25071814,30609.0,30608.0,0.04865596]
[1688221983188,0.25071814,30609.0,30608.0,0.37108565]
[1688221983378,0.25071814,30609.0,30608.0,0.35285596]
[1688221993475,0.31514928,30609.0,30608.0,0.35285596]
[1688221995191,0.31514928,30609.0,30608.0,0.35263642]
[1688221995391,0.33475128,30609.0,30608.0,0.35263642]
[1688221998593,0.31514928,30609.0,30608.0,0.35263642]
[1688222005596,1.31514928,30609.0,30608.0,0.35263642]
[1688222005803,1.33475228,30609.0,30608.0,0.35263642]
[1688222005999,1.82162829,30609.0,30608.0,0.35263642]
[1688222006699,1.80202529,30609.0,30608.0,0.35263642]
[1688222007494,1.80202529,30609.0,30608.0,0.35252649]
[1688222015915,1.73759415,30609.0,30608.0,0.35252649]
[1688222019604,1.8553319,30609.0,30608.0,0.35252649]
[1688222021625,1.8553319,30609.0,30608.0,0.35240178]
[1688222027918,1.8749349,30609.0,30608.0,0.35240178]
[1688222028627,1.8749349,30609.0,30605.0,0.06584105]
[1688222028628,0.019605,30607.0,30605.0,0.06584105]
[1688222028918,1.60382742,30606.0,30605.0,0.02009605]
[1688222029307,2.0,30604.0,30603.0,0.049018]
[1688222029520,2.266807,30604.0,30603.0,0.049018]
[1688222029722,2.87267032,30604.0,30603.0,0.049018]
[1688222030116,2.92706583,30604.0,30603.0,0.049018]
[1688222031025,2.80932808,30604.0,30603.0,0.049018]
[1688222032429,3.17249748,30604.0,30600.0,0.00049014]
[1688222032628,2.0,30600.0,30598.0,0.058833]
[1688222032938,0.7601993,30599.0,30598.0,0.058833]
[1688222033625,0.70020123,30599.0,30598.0,0.058833]
[1688222034017,0.37339316,30599.0,30598.0,0.058833]
[1688222034530,0.04658509,30599.0,30598.0,0.058833]
[1688222035128,0.01961,30599.0,30598.0,0.058833]
[1688222035526,0.247,30599.0,30598.0,0.058833]
[1688222035719,0.26661,30599.0,30598.0,0.058833]
[1688222035919,0.40846597,30601.0,30598.0,0.06794934]
[1688222036123,0.26671,30599.0,30598.0,0.06794934]
[1688222036327,0.40846597,30601.0,30598.0,0.06794934]
[1688222036630,2.26681,30599.0,30598.0,0.06794934]
[1688222036928,1.51250834,30599.0,30598.0,0.06794934]
[1688222037424,0.51250834,30599.0,30598.0,0.06794934]
[1688222037821,0.18570027,30599.0,30598.0,0.08617903]
[1688222038131,0.18570027,30599.0,30598.0,0.06794934]
[1688222038322,0.31638417,30601.0,30598.0,0.08617903]
[1688222038528,1.75797177,30599.0,30598.0,0.06794934]
[1688222038717,1.2453,30599.0,30598.0,0.06794934]
[1688222038914,1.75741364,30599.0,30598.0,0.06794934]
[1688222039118,0.51211364,30599.0,30598.0,0.06794934]
[1688222039727,0.20491557,30599.0,30598.0,0.06794934]
[1688222040124,0.24351767,30601.0,30598.0,0.08146875]
[1688222040323,0.26671,30599.0,30598.0,0.06323906]
[1688222040523,0.48237528,30600.0,30598.0,0.06323906]
[1688222040723,0.01961,30599.0,30598.0,0.06323906]
[1688222040931,0.44146071,30599.0,30598.0,0.06323906]
[1688222041133,0.6052488,30599.0,30598.0,0.08146875]
[1688222041331,1.6248588,30599.0,30598.0,0.06323906]
[1688222041531,1.29805073,30599.0,30598.0,0.06323906]
[1688222041928,0.049026,30600.0,30598.0,0.06323906]
[1688222042125,0.74749163,30599.0,30598.0,0.08208851]
[1688222042322,1.74749163,30599.0,30598.0,0.06323906]
[1688222042528,1.42070332,30599.0,30598.0,0.06323906]
[1688222042935,1.09389525,30599.0,30598.0,0.06323906]
[1688222043351,0.049026,30600.0,30598.0,0.06323906]
[1688222043634,0.27015717,30599.0,30598.0,0.06323906]
[1688222043826,0.33400752,30601.0,30598.0,0.06323906]
[1688222044134,0.27147407,30599.0,30598.0,0.08146875]
[1688222044320,1.0,30600.0,30598.0,0.06323906]
[1688222044523,0.35958668,30599.0,30598.0,0.06323906]
[1688222044732,0.01317929,30599.0,30598.0,0.06323906]
[1688222045336,0.33400752,30601.0,30598.0,0.08146875]
[1688222045633,0.4926,30599.0,30597.0,0.68911]
[1688222045839,0.53656939,30600.0,30598.0,0.00685023]
[1688222046140,0.20605138,30599.0,30597.0,0.68438654]
[1688222046339,0.4926,30598.0,30597.0,0.68438654]
[1688222046637,0.69497195,30598.0,30597.0,0.32358654]
[1688222046840,0.52917448,30598.0,30597.0,0.32358654]
[1688222047130,0.20235573,30598.0,30597.0,0.32358654]
[1688222047332,0.22196673,30598.0,30597.0,0.32358654]
[1688222047534,0.19583698,30599.0,30597.0,0.34181623]
[1688222047727,0.512011,30598.0,30597.0,0.32358654]
[1688222048130,0.32104641,30601.0,30597.0,0.34243599]
[1688222048430,0.2472,30598.0,30597.0,0.32358654]
[1688222048629,0.41192541,30599.0,30598.0,0.01884945]
[1688222048830,0.41192541,30599.0,30598.0,0.00517973]
[1688222048831,0.67873541,30599.0,30598.0,0.00517973]
[1688222049138,0.32104641,30601.0,30598.0,0.07400651]
[1688222049329,0.68830868,30599.0,30598.0,0.09285596]
[1688222049526,0.247,30599.0,30598.0,0.09285596]
[1688222049729,0.26661,30599.0,30598.0,0.07400651]
[1688222049928,0.489082,30600.0,30598.0,0.07400651]
[1688222050231,1.0,30599.0,30598.0,0.07400651]
[1688222050427,0.2472,30599.0,30598.0,0.07400651]
[1688222050631,0.2472,30599.0,30598.0,0.09285596]
[1688222050941,0.41046205,30599.0,30598.0,0.019611]
[1688222051137,0.65766205,30599.0,30598.0,0.019611]
[1688222051435,0.33085659,30599.0,30598.0,0.019611]
[1688222051625,0.33085659,30599.0,30598.0,0.07400651]
[1688222051827,0.00404852,30599.0,30598.0,0.07400651]
[1688222052027,0.49451405,30599.0,30598.0,0.07400651]
[1688222052234,0.49451405,30599.0,30598.0,0.03846045]
[1688222052440,0.16772713,30599.0,30598.0,0.11108565]
[1688222052633,0.16772713,30599.0,30598.0,0.09285596]
[1688222052842,0.14932185,30601.0,30599.0,0.09147465]
[1688222053029,0.14932185,30601.0,30600.0,0.019609]
[1688222053234,0.06972418,30601.0,30600.0,0.019609]
[1688222053428,0.12889167,30601.0,30600.0,0.04360971]
[1688222053728,0.29314012,30601.0,30600.0,0.02476026]
[1688222053939,0.39241179,30601.0,30600.0,0.02476026]
[1688222054235,0.06563155,30601.0,30600.0,0.02476026]
[1688222054448,0.80104761,30601.0,30600.0,0.02476026]
[1688222054630,0.47426944,30601.0,30600.0,0.02476026]
[1688222054826,0.73032497,30601.0,30600.0,0.02476026]
[1688222055337,0.40353826,30601.0,30600.0,0.0618394]
[1688222055540,0.07675155,30601.0,30600.0,0.02476026]
[1688222055930,0.56910267,30601.0,30600.0,0.02476026]
[1688222056135,0.24232413,30601.0,30600.0,0.02476026]
[1688222056641,1.60698953,30602.0,30601.0,0.01884945]
[1688222056845,1.85248953,30602.0,30601.0,0.00514878]
[1688222057142,1.56446075,30602.0,30600.0,0.049023]
[1688222057444,1.56446075,30602.0,30600.0,0.350123]
[1688222057445,0.03875517,30602.0,30600.0,0.350123]
[1688222057940,0.34605789,30606.0,30601.0,0.019609]
[1688222058141,0.4944,30602.0,30601.0,0.019609]
[1688222058342,0.49483002,30602.0,30601.0,0.019609]
[1688222058726,0.4944,30602.0,30601.0,0.019609]
[1688222058926,0.97917898,30602.0,30601.0,0.019609]
[1688222059329,0.99878698,30602.0,30601.0,0.019609]
[1688222060740,0.99912785,30602.0,30601.0,0.019609]
[1688222064341,1.99912785,30602.0,30601.0,0.02435005]
[1688222066445,1.99912785,30602.0,30600.0,0.33510743]
[1688222066646,0.2472,30601.0,30600.0,0.33510743]
[1688222066947,0.26004226,30601.0,30600.0,0.33510743]
[1688222067445,0.74905544,30601.0,30600.0,0.33510743]
[1688222067748,0.76851755,30601.0,30600.0,0.33510743]
[1688222068042,0.76851755,30601.0,30600.0,0.33868222]
[1688222069041,0.76851755,30601.0,30600.0,0.35369779]
[1688222071440,0.76851755,30601.0,30600.0,0.327698]
[1688222072635,0.76851755,30601.0,30600.0,0.31562155]
[1688222073042,0.88629979,30601.0,30600.0,0.31070086]
[1688222073445,0.88629979,30601.0,30600.0,0.29436383]
[1688222073643,0.88629979,30601.0,30600.0,0.29106359]
[1688222076350,0.88629979,30601.0,30600.0,0.2747756]
[1688222076752,0.88629979,30601.0,30600.0,0.2257526]
[1688222077249,0.88629979,30601.0,30600.0,0.2000426]
[1688222078753,0.88629979,30601.0,30600.0,0.2196516]
[1688222079953,0.88629979,30601.0,30600.0,0.2000426]
[1688222080945,0.88629979,30601.0,30600.0,0.18696344]
[1688222081552,0.88629979,30601.0,30600.0,0.20657244]
[1688222084652,0.88629979,30601.0,30600.0,0.18596921]
[1688222085155,0.88629979,30601.0,30600.0,0.17782802]
[1688222087745,0.88629979,30601.0,30600.0,0.15821902]
[1688222087946,0.88629979,30601.0,30600.0,0.17782802]
[1688222088245,0.88629979,30601.0,30600.0,0.15821902]
[1688222093761,0.88629979,30601.0,30600.0,0.17782802]
[1688222094855,0.88629979,30601.0,30600.0,0.15821902]
[1688222095061,0.88629979,30601.0,30600.0,0.17782802]
[1688222095765,1.0,30596.0,30595.0,0.36232822]
[1688222095958,1.0,30596.0,30595.0,0.05932822]
[1688222096159,1.98348931,30596.0,30595.0,0.05932822]
[1688222096460,2.00310131,30596.0,30594.0,0.05884]
[1688222096651,2.00310131,30596.0,30595.0,0.34596704]
[1688222096853,1.25030131,30596.0,30595.0,0.34102826]
[1688222097162,2.36808355,30596.0,30595.0,0.34596663]
[1688222097348,2.04124344,30596.0,30595.0,0.34102826]
[1688222097760,1.71440333,30596.0,30595.0,0.39542377]
[1688222097955,2.18287012,30596.0,30595.0,0.39542377]
[1688222098260,2.18287012,30596.0,30595.0,0.40036137]
[1688222098261,1.85603001,30596.0,30595.0,0.40036137]
[1688222098462,1.85603001,30596.0,30595.0,0.43744051]
[1688222098956,2.02097305,30596.0,30595.0,0.43744051]
[1688222099162,2.02097305,30596.0,30595.0,0.79824051]
[1688222099163,0.40653868,30596.0,30595.0,0.79824051]
[1688222099358,0.08333868,30596.0,30595.0,0.79824051]
[1688222099563,1.0,30598.0,30595.0,0.79824051]
[1688222099751,0.31005795,30596.0,30595.0,0.76116137]
[1688222099952,0.2472,30596.0,30595.0,0.76116137]
[1688222100164,0.10972928,30596.0,30595.0,0.76116137]
[1688222100555,0.03009177,30596.0,30595.0,0.76116137]
[1688222100761,0.04142469,30596.0,30595.0,0.79824051]
[1688222101162,0.00049027,30599.0,30595.0,0.76116137]
[1688222101355,0.64638127,30596.0,30595.0,0.76116137]
[1688222101554,0.00861405,30598.0,30595.0,0.76116137]
[1688222101754,0.63573788,30596.0,30595.0,0.76116137]
[1688222101959,0.30895033,30596.0,30595.0,0.76116137]
[1688222102163,0.0156004,30598.0,30595.0,0.76116137]
[1688222102357,0.55340408,30596.0,30595.0,0.76116137]
[1688222102566,0.22656397,30596.0,30595.0,0.76116137]
[1688222102757,0.247,30596.0,30595.0,0.76116137]
[1688222102965,0.22222915,30596.0,30595.0,0.78001082]
[1688222103463,0.019609,30601.0,30595.0,0.76116137]
[1688222103662,0.22852384,30600.0,30599.0,0.01961]
[1688222103865,0.13982445,30602.0,30599.0,0.01961]
[1688222104068,0.96863299,30600.0,30599.0,0.03783969]
[1688222104268,0.247,30600.0,30599.0,0.01961]
[1688222104463,0.019609,30600.0,30599.0,0.01961]
[1688222104663,0.72611447,30600.0,30599.0,0.03845945]
[1688222104865,0.2472,30600.0,30599.0,0.03845945]
[1688222105064,0.2528007,30600.0,30599.0,0.03845945]
[1688222105266,1.01680676,30602.0,30599.0,0.01961]
[1688222105571,0.2472,30600.0,30599.0,0.01961]
[1688222105768,0.00048918,30603.0,30600.0,0.01884945]
[1688222105975,0.00048918,30603.0,30601.0,0.019609]
[1688222106268,0.281697,30604.0,30602.0,0.01822969]
[1688222106563,0.75801967,30603.0,30602.0,0.019607]
[1688222107662,0.75801967,30603.0,30602.0,0.03845645]
[1688222110773,0.75801967,30603.0,30602.0,0.04304315]
[1688222111170,0.73841267,30603.0,30602.0,0.04304315]
[1688222112760,0.75801967,30603.0,30602.0,0.04304315]
[1688222113465,0.2472,30603.0,30602.0,0.29024315]
[1688222113769,0.02678847,30604.0,30602.0,0.65694315]
[1688222113966,0.247,30606.0,30603.0,0.28565645]
[1688222114166,0.247,30606.0,30605.0,0.627606]
[1688222114471,0.2472,30606.0,30605.0,0.66468514]
[1688222114675,0.2472,30606.0,30605.0,0.66926938]
[1688222115365,0.266805,30606.0,30605.0,0.66926938]
[1688222116679,0.2472,30606.0,30605.0,0.66926938]
[1688222116871,0.2472,30606.0,30605.0,0.94946419]
[1688222117272,0.2472,30606.0,30605.0,0.94487995]
[1688222117861,0.2472,30606.0,30605.0,0.92665026]
[1688222118262,0.25048315,30606.0,30605.0,0.92665026]
[1688222120172,0.27008815,30606.0,30605.0,0.92665026]
[1688222122179,0.27008815,30606.0,30605.0,0.89447714]
[1688222122474,0.27008815,30606.0,30605.0,0.8912059]
[1688222122674,0.27008815,30606.0,30605.0,0.572506]
[1688222124378,0.27008815,30606.0,30605.0,0.325306]
[1688222124581,0.27008815,30606.0,30605.0,0.34353569]
[1688222124782,0.27008815,30606.0,30605.0,0.34415545]
[1688222125471,0.02288815,30606.0,30605.0,0.59075545]
[1688222125670,0.02288815,30606.0,30605.0,0.60898514]
[1688222125671,0.42891076,30606.0,30605.0,0.60898514]
[1688222130279,0.42891076,30606.0,30605.0,0.56422047]